fUSD/lending_fUSD_20250209
["ID","MTS","AMOUNT","RATE_DAILY","PERIOD"]
[352425397,1739095855838,-1630.8,0.00010773,2]
[352425398,1739095855847,-500.0,0.00010773,2]
[352425399,1739095855857,-1585.45,0.00010773,2]
[352425400,1739095855867,-591.04,0.00010773,2]
[352425401,1739095855876,-2273.72,0.00010773,2]
[352425402,1739095855886,-500.0,0.00010773,2]
[352425403,1739095855895,-819.17,0.00010773,2]
[352425404,1739095855905,-1111.04,0.00010773,2]
[352425405,1739095855915,-1302.26,0.00010773,2]
[352425406,1739095855925,-1487.54,0.00010773,2]
[352425407,1739095855934,-500.0,0.00010773,2]
[352425408,1739095855944,-1111.22,0.00010773,2]
[352425409,1739095855957,-1031.34,0.00010773,2]
[352425410,1739095855967,-366.94778067,0.00010773,2]
[352425411,1739095855977,-500.0,0.00010773,2]
[352425412,1739095855987,-967.2,0.00010773,2]
[352425413,1739095855996,-747.38,0.00010773,2]
[352425414,1739095856006,-500.0,0.00010773,2]
[352425415,1739095856017,-1032.96,0.00010773,2]
[352425416,1739095856028,-829.73,0.00010773,2]
[352425417,1739095856038,-669.95,0.00010773,2]
[352425418,1739095856047,-500.0,0.00010773,2]
[352425419,1739095856057,-500.0,0.00010773,2]
[352425420,1739095856066,-1044.85,0.00010773,2]
[352425421,1739095856075,-1479.18,0.00010773,2]
[352425422,1739095856084,-698.47,0.00010773,2]
[352425423,1739095856094,-1465.35,0.00010773,2]
[352425424,1739095856103,-1918.5,0.00010773,2]
[352425425,1739095856112,-500.0,0.00010773,2]
[352425426,1739095856122,-1080.16,0.00010773,2]
[352425427,1739095856133,-1493.17,0.00010773,2]
[352425428,1739095856143,-500.0,0.00010773,2]
[352425429,1739095856154,-500.0,0.00010773,2]
[352425430,1739095856164,-1116.87,0.00010773,2]
[352425431,1739095856174,-1703.91,0.00010773,2]
[352425432,1739095856183,-1227.31,0.00010773,2]
[352425433,1739095856194,-955.79,0.00010773,2]
[352425434,1739095856204,-509.24,0.00010773,2]
[352425435,1739095856214,-1379.38,0.00010773,2]
[352425436,1739095856224,-500.0,0.00010773,2]
[352425437,1739095856234,-3396.14,0.00010773,2]
[352425438,1739095856244,-1580.08,0.00010773,2]
[352425439,1739095856255,-1184.37,0.00010773,2]
[352425440,1739095856265,-1373.36,0.00010773,2]
[352425441,1739095856274,-783.87,0.00010773,2]
[352425442,1739095856283,-1000.0,0.00010773,2]
[352425443,1739095856292,-1456.24,0.00010773,2]
[352425444,1739095856302,-756.71,0.00010773,2]
[352425445,1739095856311,-1314.38,0.00010773,2]
[352425446,1739095856320,-500.0,0.00010773,2]
[352425447,1739095856330,-232.27865449,0.00010773,2]
[352425448,1739095856339,-912.33,0.00010773,2]
[352425449,1739095856348,-588.42942843,0.00010773,2]
[352425450,1739095856357,-743.47,0.00010773,2]
[352425451,1739095856367,-557.2,0.00010773,2]
[352425452,1739095856378,-1107.21,0.00010773,2]
[352425453,1739095856387,-1216.55,0.00010773,2]
[352425454,1739095856396,-1685.79,0.00010773,2]
[352425455,1739095856405,-1209.48,0.00010773,2]
[352425456,1739095856414,-500.0,0.00010773,2]
[352425457,1739095856424,-500.0,0.00010773,2]
[352425458,1739095856433,-500.0,0.00010773,2]
[352425459,1739095856443,-574.57,0.00010773,2]
[352425460,1739095856452,-500.0,0.00010773,2]
[352425461,1739095856462,-500.0,0.00010773,2]
[352425462,1739095856471,-1320.75,0.00010773,2]
[352425463,1739095856481,-834.03,0.00010773,2]
[352425464,1739095856491,-500.0,0.00010773,2]
[352425465,1739095856500,-912.85,0.00010773,2]
[352425466,1739095856510,-1117.53,0.00010773,2]
[352425467,1739095856519,-500.0,0.00010773,2]
[352425468,1739095856528,-150.0,0.00010774,2]
[352425469,1739095856538,-200.0,0.00010781,2]
[352425470,1739095856547,-508.77,0.00010805,2]
[352425471,1739095856556,-500.0,0.00010806,2]
[352425472,1739095856565,-500.0,0.00010806,2]
[352425473,1739095856574,-500.0,0.00010806,2]
[352425474,1739095856589,-500.0,0.00010806,2]
[352425475,1739095856598,-500.0,0.00010806,2]
[352425476,1739095856608,-500.0,0.00010806,2]
[352425477,1739095856617,-355.8,0.00010806,2]
[352425478,1739095856626,-500.0,0.00010806,2]
[352425479,1739095856635,-500.0,0.00010806,2]
[352425480,1739095856646,-1087.04,0.00010806,2]
[352425481,1739095856655,-500.0,0.00010806,2]
[352425482,1739095856665,-500.0,0.00010806,2]
[352425483,1739095856675,-500.0,0.00010806,2]
[352425484,1739095856684,-517.6,0.00010806,2]
[352425485,1739095856694,-500.0,0.00010806,2]
[352425486,1739095856703,-500.0,0.00010806,2]
[352425487,1739095856712,-500.0,0.00010806,2]
[352425488,1739095856721,-500.0,0.00010806,2]
[352425489,1739095856731,-500.0,0.00010806,2]
[352425490,1739095856741,-685.98,0.00010806,2]
[352425491,1739095856751,-500.0,0.00010806,2]
[352425492,1739095856760,-500.0,0.00010806,2]
[352425493,1739095856770,-500.0,0.00010806,2]
[352425494,1739095856779,-500.0,0.00010806,2]
[352425495,1739095856788,-500.0,0.00010806,2]
[352425496,1739095856797,-500.0,0.00010806,2]
[352425497,1739095856805,-500.0,0.00010806,2]
[352425498,1739095856814,-614.19,0.00010806,2]
[352425499,1739095856825,-500.0,0.00010806,2]
[352425500,1739095856834,-500.0,0.00010806,2]
[352425501,1739095856843,-500.0,0.00010806,2]
[352425502,1739095856853,-500.0,0.00010806,2]
[352425503,1739095856862,-500.0,0.00010806,2]
[352425504,1739095856872,-500.0,0.00010806,2]
[352425505,1739095856881,-576.84,0.00010806,2]
[352425506,1739095856890,-500.0,0.00010806,2]
[352425507,1739095856900,-376.8309947,0.00010806,2]
[352425508,1739095856909,-500.0,0.00010806,2]
[352425509,1739095856920,-500.0,0.00010806,2]
[352425510,1739095856930,-500.0,0.00010806,2]
[352425511,1739095856939,-500.0,0.00010806,2]
[352425512,1739095856953,-500.0,0.00010806,2]
[352425513,1739095856963,-665.4,0.00010806,2]
[352425514,1739095856972,-500.0,0.00010806,2]
[352425515,1739095856981,-500.0,0.00010806,2]
[352425516,1739095856991,-500.0,0.00010806,2]
[352425517,1739095857002,-500.0,0.00010806,2]
[352425518,1739095857013,-650.78,0.00010806,2]
[352425519,1739095857022,-500.0,0.00010806,2]
[352425520,1739095857032,-692.49,0.00010806,2]
[352425521,1739095857042,-1032.18,0.00010806,2]
[352425522,1739095857052,-500.0,0.00010806,2]
[352425523,1739095857061,-500.0,0.00010806,2]
[352425524,1739095857070,-500.0,0.00010806,2]
[352425525,1739095857079,-500.0,0.00010806,2]
[352425526,1739095857089,-500.0,0.00010806,2]
[352425527,1739095857100,-500.0,0.00010806,2]
[352425528,1739095857112,-500.0,0.00010806,2]
[352425529,1739095857121,-577.91,0.00010806,2]
[352425530,1739095857131,-500.0,0.00010806,2]
[352425531,1739095857141,-500.0,0.00010806,2]
[352425532,1739095857150,-583.79,0.00010806,2]
[352425533,1739095857161,-500.0,0.00010806,2]
[352425534,1739095857171,-711.52,0.00010806,2]
[352425535,1739095857181,-829.67,0.00010806,2]
[352425536,1739095857190,-500.0,0.00010806,2]
[352425537,1739095857200,-500.0,0.00010806,2]
[352425538,1739095857210,-500.0,0.00010806,2]
[352425539,1739095857219,-755.01,0.00010806,2]
[352425540,1739095857230,-577.83,0.00010806,2]
[352425541,1739095857239,-759.26,0.00010806,2]
[352425542,1739095857249,-782.96,0.0001081,2]
[352425543,1739095857258,-192.61101551,0.0001081,2]
[352425544,1739095857268,-610.35,0.00010811,2]
[352425545,1739095857277,-198.42027952,0.00010811,2]
[352425546,1739095857287,-704.18,0.00010811,2]
[352425547,1739095857296,-627.59270884,0.00010811,2]
[352425548,1739095857306,-500.0,0.00010811,2]
[352425549,1739095857316,-641.82,0.00010811,2]
[352425550,1739095857325,-500.0,0.00010811,2]
[352425551,1739095857334,-756.47,0.00010811,2]
[352425552,1739095857344,-500.0,0.00010811,2]
[352425553,1739095857353,-151.0,0.00010812,2]
[352425554,1739095857363,-3666.04700848,0.00010848,2]
[352425555,1739095857372,-1638.23275958,0.00010848,2]
[352425556,1739095857382,-150.0,0.00010853,2]
[352425557,1739095857391,-8461.20096863,0.00010853,2]
[352425558,1739095857400,-1703.43536801,0.0001088,2]
[352425559,1739095857411,-150.0,0.00010882,2]
[352425560,1739095857420,-500.0,0.00010894,2]
[352425561,1739095857429,-500.0,0.00010894,2]
[352425562,1739095857438,-500.0,0.00010894,2]
[352425563,1739095857448,-500.0,0.00010894,2]
[352425564,1739095857458,-500.0,0.00010894,2]
[352425565,1739095857467,-456.6452,0.00010894,2]
[352425566,1739095857478,-150.43,0.00010895,2]
[352425567,1739095857488,-152.47,0.00010896,2]
[352425568,1739095857497,-151.6,0.00010896,2]
[352425569,1739095857506,-151.03,0.00010896,2]
[352425570,1739095857515,-151.99,0.00010896,2]
[352425571,1739095857525,-150.47,0.00010896,2]
[352425572,1739095857534,-150.0,0.00010901,2]
[352425573,1739095857543,-500.0,0.00010907,2]
[352425574,1739095857553,-1152.27,0.00010908,2]
[352425575,1739095857562,-724.17,0.00010908,2]
[352425576,1739095857571,-1132.72,0.00010908,2]
[352425577,1739095857580,-1357.8,0.00010908,2]
[352425578,1739095857590,-500.0,0.00010908,2]
[352425579,1739095857599,-1150.02,0.00010908,2]
[352425580,1739095857608,-880.85,0.00010908,2]
[352425581,1739095857619,-1015.0,0.00010908,2]
[352425582,1739095857628,-500.0,0.00010908,2]
[352425583,1739095857637,-1257.71,0.00010908,2]
[352425584,1739095857647,-1341.32,0.00010908,2]
[352425585,1739095857656,-698.83,0.00010908,2]
[352425586,1739095857668,-1461.08,0.00010908,2]
[352425587,1739095857677,-1576.02,0.00010908,2]
[352425588,1739095857686,-1475.76,0.00010908,2]
[352425589,1739095857696,-1506.32,0.00010908,2]
[352425590,1739095857705,-1494.26,0.00010908,2]
[352425591,1739095857714,-500.0,0.00010908,2]
[352425592,1739095857725,-1208.06,0.00010908,2]
[352425593,1739095857735,-1283.21,0.00010908,2]
[352425594,1739095858020,-500.0,0.00010908,2]
[352425595,1739095858031,-500.0,0.00010908,2]
[352425596,1739095858042,-668.93,0.00010908,2]
[352425597,1739095858052,-532.29,0.00010908,2]
[352425598,1739095858064,-500.0,0.00010908,2]
[352425599,1739095858074,-500.0,0.00010908,2]
[352425600,1739095858083,-631.57,0.00010908,2]
[352425601,1739095858093,-500.0,0.00010908,2]
[352425602,1739095858103,-500.0,0.00010908,2]
[352425603,1739095858113,-1328.43,0.00010908,2]
[352425604,1739095858123,-404.75224425,0.00010908,2]
[352425605,1739095858132,-500.0,0.00010909,2]
[352425606,1739095858142,-500.0,0.00010909,2]
[352425607,1739095858152,-500.0,0.00010909,2]
[352425608,1739095858162,-500.0,0.00010909,2]
[352425609,1739095858171,-500.0,0.00010909,2]
[352425610,1739095858181,-500.0,0.00010909,2]
[352425611,1739095858191,-500.0,0.00010909,2]
[352425612,1739095858200,-500.0,0.00010909,2]
[352425613,1739095858210,-500.0,0.00010909,2]
[352425614,1739095858219,-500.0,0.00010909,2]
[352425615,1739095858229,-500.0,0.00010909,2]
[352425616,1739095858239,-500.0,0.00010909,2]
[352425617,1739095858249,-500.0,0.00010909,2]
[352425618,1739095858258,-500.0,0.00010909,2]
[352425619,1739095858267,-500.0,0.00010909,2]
[352425620,1739095858277,-599.66,0.00010909,2]
[352425621,1739095858286,-533.15,0.00010909,2]
[352425622,1739095858295,-500.0,0.00010909,2]
[352425623,1739095858305,-500.0,0.00010909,2]
[352425624,1739095858314,-506.16873324,0.00010909,2]
[352425625,1739095858324,-714.67,0.00010909,2]
[352425626,1739095858333,-500.0,0.00010909,2]
[352425627,1739095858344,-510.82,0.00010909,2]
[352425628,1739095858354,-500.0,0.00010909,2]
[352425629,1739095858363,-500.0,0.00010909,2]
[352425630,1739095858372,-506.68770198,0.00010909,2]
[352425631,1739095858382,-575.28,0.00010909,2]
[352425632,1739095858392,-500.0,0.00010909,2]
[352425633,1739095858403,-500.0,0.00010909,2]
[352425634,1739095858412,-500.0,0.00010909,2]
[352425635,1739095858422,-594.56,0.00010909,2]
[352425636,1739095858432,-1213.56,0.00010909,2]
[352425637,1739095858442,-500.0,0.00010909,2]
[352425638,1739095858451,-733.97644,0.00010909,2]
[352425639,1739095858460,-588.03,0.00010909,2]
[352425640,1739095858470,-529.87,0.00010909,2]
[352425641,1739095858480,-957.726417,0.00010909,2]
[352425642,1739095858490,-781.27,0.00010909,2]
[352425643,1739095858499,-970.52,0.00010909,2]
[352425644,1739095858508,-537.11,0.00010909,2]
[352425645,1739095858518,-500.0,0.00010909,2]
[352425646,1739095858529,-2972.23,0.00010909,2]
[352425647,1739095858538,-666.32,0.00010909,2]
[352425648,1739095858548,-1280.02,0.00010909,2]
[352425649,1739095858558,-1201.1,0.00010909,2]
[352425650,1739095858567,-500.0,0.00010909,2]
[352425651,1739095858577,-1268.87,0.00010909,2]
[352425652,1739095858586,-632.14,0.00010909,2]
[352425653,1739095858595,-944.53,0.00010909,2]
[352425654,1739095858605,-702.27,0.00010909,2]
[352425655,1739095858614,-1188.01,0.00010909,2]
[352425656,1739095858624,-500.0,0.00010909,2]
[352425657,1739095858634,-2680.97,0.00010909,2]
[352425658,1739095858644,-801.63,0.00010909,2]
[352425659,1739095858654,-500.0,0.00010909,2]
[352425660,1739095858665,-1475.77,0.00010909,2]
[352425661,1739095858675,-500.0,0.00010909,2]
[352425662,1739095858685,-679.18,0.00010909,2]
[352425663,1739095858695,-500.0,0.00010909,2]
[352425664,1739095858705,-500.0,0.00010909,2]
[352425665,1739095858714,-679.7,0.00010909,2]
[352425666,1739095858723,-500.0,0.00010909,2]
[352425667,1739095858733,-770.02,0.00010909,2]
[352425668,1739095858743,-500.0,0.00010909,2]
[352425669,1739095858753,-500.0,0.00010909,2]
[352425670,1739095858762,-500.0,0.00010909,2]
[352425671,1739095858772,-500.0,0.0001091,2]
[352425672,1739095858781,-500.0,0.0001091,2]
[352425673,1739095858790,-500.0,0.0001091,2]
[352425674,1739095858799,-507.13249854,0.0001091,2]
[352425675,1739095858809,-601.1794758,0.0001091,2]
[352425676,1739095858818,-500.0,0.0001091,2]
[352425677,1739095858828,-500.0,0.0001091,2]
[352425678,1739095858838,-500.0,0.0001091,2]
[352425679,1739095858848,-500.0,0.0001091,2]
[352425680,1739095858858,-500.0,0.0001091,2]
[352425681,1739095858868,-500.0,0.0001091,2]
[352425682,1739095858877,-500.0,0.0001091,2]
[352425683,1739095858887,-509.2847278,0.0001091,2]
[352425684,1739095858897,-500.0,0.0001091,2]
[352425685,1739095858907,-319.20706077,0.0001091,2]
[352425686,1739095858918,-606.12328339,0.0001091,2]
[352425687,1739095858927,-500.0,0.0001091,2]
[352425688,1739095858937,-1239.95,0.0001091,2]
[352425689,1739095858948,-500.0,0.0001091,2]
[352425690,1739095858961,-500.0,0.0001091,2]
[352425691,1739095858971,-500.0,0.0001091,2]
[352425692,1739095858980,-462.07,0.0001091,2]
[352425693,1739095858990,-555.71,0.0001091,2]
[352425694,1739095859000,-500.0,0.0001091,2]
[352425695,1739095859009,-500.0,0.0001091,2]
[352425696,1739095859018,-433.28422251,0.0001091,2]
[352425697,1739095859030,-500.0,0.0001091,2]
[352425698,1739095859039,-500.0,0.0001091,2]
[352425699,1739095859049,-485.57877708,0.0001091,2]
[352425700,1739095859059,-500.0,0.0001091,2]
[352425701,1739095859068,-500.0,0.0001091,2]
[352425702,1739095859078,-500.0,0.0001091,2]
[352425703,1739095859087,-500.0,0.0001091,2]
[352425704,1739095859105,-500.0,0.0001091,2]
[352425705,1739095859115,-500.0,0.0001091,2]
[352425706,1739095859125,-500.0,0.0001091,2]
[352425707,1739095859134,-500.0,0.0001091,2]
[352425708,1739095859143,-587.11,0.0001091,2]
[352425709,1739095859152,-500.0,0.0001091,2]
[352425710,1739095859161,-500.0,0.0001091,2]
[352425711,1739095859171,-500.0,0.0001091,2]
[352425712,1739095859181,-500.0,0.0001091,2]
[352425713,1739095859190,-500.0,0.0001091,2]
[352425714,1739095859200,-500.0,0.0001091,2]
[352425715,1739095859210,-500.0,0.0001091,2]
[352425716,1739095859220,-546.55,0.0001091,2]
[352425717,1739095859230,-500.0,0.0001091,2]
[352425718,1739095859240,-500.0,0.0001091,2]
[352425719,1739095859250,-500.0,0.0001091,2]
[352425720,1739095859260,-500.0,0.0001091,2]
[352425721,1739095859270,-500.0,0.0001091,2]
[352425722,1739095859280,-500.0,0.0001091,2]
[352425723,1739095859291,-550.19,0.0001091,2]
[352425724,1739095859300,-612.35,0.0001091,2]
[352425725,1739095859309,-830.04,0.0001091,2]
[352425726,1739095859318,-1383.45,0.0001091,2]
[352425727,1739095859327,-1630.8,0.0001091,2]
[352425728,1739095859337,-500.0,0.0001091,2]
[352425729,1739095859346,-1585.45,0.0001091,2]
[352425730,1739095859356,-591.04,0.0001091,2]
[352425731,1739095859366,-2273.72,0.0001091,2]
[352425732,1739095859375,-500.0,0.0001091,2]
[352425733,1739095859383,-819.17,0.0001091,2]
[352425734,1739095859392,-1111.04,0.0001091,2]
[352425735,1739095859402,-1302.26,0.0001091,2]
[352425736,1739095859412,-1487.54,0.0001091,2]
[352425737,1739095859421,-500.0,0.0001091,2]
[352425738,1739095859430,-1111.22,0.0001091,2]
[352425739,1739095859440,-1031.34,0.0001091,2]
[352425740,1739095859450,-500.0,0.0001091,2]
[352425741,1739095859460,-967.2,0.0001091,2]
[352425742,1739095859470,-747.38,0.0001091,2]
[352425743,1739095859480,-500.0,0.0001091,2]
[352425744,1739095859490,-1032.96,0.0001091,2]
[352425745,1739095859500,-829.73,0.0001091,2]
[352425746,1739095859510,-669.95,0.0001091,2]
[352425747,1739095859519,-500.0,0.0001091,2]
[352425748,1739095859529,-500.0,0.0001091,2]
[352425749,1739095859539,-1044.85,0.0001091,2]
[352425750,1739095859548,-1479.18,0.0001091,2]
[352425751,1739095859557,-698.47,0.0001091,2]
[352425752,1739095859568,-1465.35,0.0001091,2]
[352425753,1739095859577,-1918.5,0.0001091,2]
[352425754,1739095859587,-152.64,0.0001091,2]
[352425755,1739095859597,-1080.16,0.0001091,2]
[352425756,1739095859607,-1493.17,0.0001091,2]
[352425757,1739095859619,-500.0,0.0001091,2]
[352425758,1739095859629,-500.0,0.0001091,2]
[352425759,1739095859639,-1116.87,0.0001091,2]
[352425760,1739095859648,-1703.91,0.0001091,2]
[352425761,1739095859658,-1227.31,0.0001091,2]
[352425762,1739095859668,-955.79,0.0001091,2]
[352425763,1739095859677,-509.24,0.0001091,2]
[352425764,1739095859687,-1379.38,0.0001091,2]
[352425765,1739095859697,-500.0,0.0001091,2]
[352425766,1739095859706,-3396.14,0.0001091,2]
[352425767,1739095859716,-1580.08,0.0001091,2]
[352425768,1739095859726,-1184.37,0.0001091,2]
[352425769,1739095859736,-1373.36,0.0001091,2]
[352425770,1739095859746,-783.87,0.0001091,2]
[352425771,1739095859756,-1000.0,0.0001091,2]
[352425772,1739095859765,-1456.24,0.0001091,2]
[352425773,1739095859775,-756.71,0.0001091,2]
[352425774,1739095859784,-1314.38,0.0001091,2]
[352425775,1739095859794,-500.0,0.0001091,2]
[352425776,1739095859803,-912.33,0.0001091,2]
[352425777,1739095859813,-743.47,0.0001091,2]
[352425778,1739095859822,-557.2,0.0001091,2]
[352425779,1739095859831,-1107.21,0.0001091,2]
[352425780,1739095859841,-1216.55,0.0001091,2]
[352425781,1739095859850,-1685.79,0.0001091,2]
[352425782,1739095859860,-1209.48,0.0001091,2]
[352425783,1739095859869,-524.23003722,0.0001091,2]
[352425784,1739095859879,-500.0,0.0001091,2]
[352425785,1739095859887,-500.0,0.0001091,2]
[352425786,1739095859897,-574.57,0.0001091,2]
[352425787,1739095859906,-500.0,0.0001091,2]
[352425788,1739095859916,-500.0,0.0001091,2]
[352425789,1739095859926,-1320.75,0.0001091,2]
[352425790,1739095859936,-834.03,0.0001091,2]
[352425791,1739095859946,-500.0,0.0001091,2]
[352425792,1739095859960,-912.85,0.0001091,2]
[352425793,1739095859969,-1117.53,0.0001091,2]
[352425794,1739095859979,-500.0,0.0001091,2]
[352425795,1739095859988,-602.38,0.0001093,2]
[352425796,1739095859998,-319.52227267,0.0001094,2]
[352425797,1739095860007,-6604.5758325,0.0001094,2]
[352425798,1739095860017,-1938.0028128,0.0001094,2]
[352425799,1739095860027,-4878.049263,0.0001094,2]
[352425800,1739095860036,-3311.7033757,0.0001094,2]
[352425801,1739095860046,-347.5337248,0.0001094,2]
[352425802,1739095860056,-5983.4618796,0.0001094,2]
[352425803,1739095860066,-2866.5039237,0.0001094,2]
[352425804,1739095860075,-508.77,0.00010942,2]
[352425805,1739095860085,-151.595202,0.00010943,2]
[352425806,1739095860095,-151.595202,0.00010943,2]
[352425807,1739095860104,-500.0,0.00010943,2]
[352425808,1739095860113,-500.0,0.00010943,2]
[352425809,1739095860123,-327.5,0.00010943,2]
[352425810,1739095860132,-227.32,0.00010943,2]
[352425811,1739095860141,-151.0,0.00010943,2]
[352425812,1739095860151,-500.0,0.00010943,2]
[352425813,1739095860160,-151.0,0.00010943,2]
[352425814,1739095860171,-500.0,0.00010943,2]
[352425815,1739095860180,-500.0,0.00010943,2]
[352425816,1739095860189,-500.0,0.00010943,2]
[352425817,1739095860199,-1087.04,0.00010943,2]
[352425818,1739095860209,-500.0,0.00010943,2]
[352425819,1739095860219,-500.0,0.00010943,2]
[352425820,1739095860228,-500.0,0.00010943,2]
[352425821,1739095860238,-517.6,0.00010943,2]
[352425822,1739095860248,-500.0,0.00010943,2]
[352425823,1739095860259,-500.0,0.00010943,2]
[352425824,1739095860268,-500.0,0.00010943,2]
[352425825,1739095860277,-500.0,0.00010943,2]
[352425826,1739095860287,-500.0,0.00010943,2]
[352425827,1739095860296,-685.98,0.00010943,2]
[352425828,1739095860305,-500.0,0.00010943,2]
[352425829,1739095860314,-500.0,0.00010943,2]
[352425830,1739095860323,-500.0,0.00010943,2]
[352425831,1739095860332,-500.0,0.00010943,2]
[352425832,1739095860341,-500.0,0.00010943,2]
[352425833,1739095860351,-500.0,0.00010943,2]
[352425834,1739095860413,-500.0,0.00010943,2]
[352425835,1739095860423,-614.19,0.00010943,2]
[352425836,1739095860432,-500.0,0.00010943,2]
[352425837,1739095860442,-500.0,0.00010943,2]
[352425838,1739095860450,-500.0,0.00010943,2]
[352425839,1739095860460,-500.0,0.00010943,2]
[352425840,1739095860469,-500.0,0.00010943,2]
[352425841,1739095860478,-235.79117387,0.00010943,2]
[352425842,1739095860487,-576.84,0.00010943,2]
[352425843,1739095860496,-500.0,0.00010943,2]
[352425844,1739095860505,-500.0,0.00010943,2]
[352425845,1739095860515,-500.0,0.00010943,2]
[352425846,1739095860524,-500.0,0.00010943,2]
[352425847,1739095860533,-500.0,0.00010943,2]
[352425848,1739095860542,-665.4,0.00010943,2]
[352425849,1739095860551,-500.0,0.00010943,2]
[352425850,1739095860561,-500.0,0.00010943,2]
[352425851,1739095860571,-500.0,0.00010943,2]
[352425852,1739095860580,-500.0,0.00010943,2]
[352425853,1739095860589,-650.78,0.00010943,2]
[352425854,1739095860598,-500.0,0.00010943,2]
[352425855,1739095860607,-692.49,0.00010943,2]
[352425856,1739095860617,-1032.18,0.00010943,2]
[352425857,1739095860626,-151.0,0.00010943,2]
[352425858,1739095860636,-500.0,0.00010943,2]
[352425859,1739095860645,-500.0,0.00010943,2]
[352425860,1739095860654,-500.0,0.00010943,2]
[352425861,1739095860664,-500.0,0.00010943,2]
[352425862,1739095860673,-500.0,0.00010943,2]
[352425863,1739095860682,-500.0,0.00010943,2]
[352425864,1739095860692,-500.0,0.00010943,2]
[352425865,1739095860701,-577.91,0.00010943,2]
[352425866,1739095860710,-500.0,0.00010943,2]
[352425867,1739095860719,-500.0,0.00010943,2]
[352425868,1739095860729,-583.79,0.00010943,2]
[352425869,1739095860738,-500.0,0.00010943,2]
[352425870,1739095860748,-711.52,0.00010943,2]
[352425871,1739095860757,-829.67,0.00010943,2]
[352425872,1739095860767,-500.0,0.00010943,2]
[352425873,1739095860776,-500.0,0.00010943,2]
[352425874,1739095860785,-500.0,0.00010943,2]
[352425875,1739095860794,-755.01,0.00010943,2]
[352425876,1739095860803,-577.83,0.00010943,2]
[352425877,1739095860812,-759.26,0.00010943,2]
[352425878,1739095860821,-508.77,0.00010947,2]
[352425879,1739095860830,-782.96,0.00010947,2]
[352425880,1739095860839,-148931.61474188,0.00010948,2]
[352425881,1739095860848,-151.595202,0.00010948,2]
[352425882,1739095860857,-151.595202,0.00010948,2]
[352425883,1739095860867,-151.0,0.00010948,2]
[352425884,1739095860876,-151.0,0.00010948,2]
[352425885,1739095860885,-610.35,0.00010948,2]
[352425886,1739095860895,-704.18,0.00010948,2]
[352425887,1739095860904,-500.0,0.00010948,2]
[352425888,1739095860918,-641.82,0.00010948,2]
[352425889,1739095860928,-500.0,0.00010948,2]
[352425890,1739095860937,-756.47,0.00010948,2]
[352425891,1739095860948,-500.0,0.00010948,2]
[352425892,1739095860958,-697.0,0.00010949,2]
[352425893,1739095860967,-862.81965817,0.00010949,2]
[352425894,1739095860976,-151.0,0.00010952,2]
[352425895,1739095860986,-500.0,0.00010959,2]
[352425896,1739095860998,-500.0,0.00010959,2]